bitfinex-derivatives/quotes_ETHF0:USTF0_20250323
["timestamp","ask_amount","ask_price","bid_price","bid_amount"]
[1742738253609,5.509,2020.0,2019.8,2.31593]
[1742738253812,5.509,2020.0,2019.9,2.0236]
[1742738257811,5.50897,2020.0,2019.9,2.0236]
[1742738258421,5.50897,2020.0,2019.9,3.01392]
[1742738258720,5.50897,2020.0,2019.9,2.0236]
[1742738258916,5.50194,2020.1,2019.9,2.0236]
[1742738259217,5.50194,2020.1,2020.0,1.3954]
[1742738261518,0.99032,2019.9,2019.8,0.99033]
[1742738262221,2.29162,2019.9,2019.8,0.99033]
[1742738262422,1.3013,2019.9,2019.8,0.99033]
[1742738262627,2.29162,2019.9,2019.8,0.99033]
[1742738262814,3.64322,2019.9,2019.8,2.29563]
[1742738263724,3.64322,2019.9,2019.8,1.3053]
[1742738263923,0.99037,2019.8,2019.7,0.0074355]
[1742738264120,2.38537,2019.8,2019.7,0.0074355]
[1742738264516,2.38537,2019.8,2019.7,1.3025355]
[1742738265316,2.38537,2019.8,2019.7,2.2929555]
[1742738265612,2.38537,2019.8,2019.7,1.3025355]
[1742738266222,2.38537,2019.8,2019.7,2.2929555]
[1742738267326,3.2078,2019.9,2019.8,0.99037]
[1742738267522,0.99032,2019.9,2019.8,2.25457]
[1742738267826,0.99032,2019.9,2019.8,2.92287]
[1742738268025,2.29131,2020.0,2019.9,0.99032]
[1742738268322,2.29131,2020.0,2019.9,2.25452]
[1742738268724,1.301,2020.0,2019.9,2.25452]
[1742738270327,2.29127,2020.0,2019.9,2.25452]
[1742738271125,2.29127,2020.0,2019.9,1.2642]
[1742738272529,2.29127,2020.0,2019.9,2.25452]
[1742738274833,1.301,2020.0,2019.9,2.25452]
[1742738281936,2.29127,2020.0,2019.9,1.2642]
[1742738283332,2.29127,2020.0,2019.9,2.25452]
[1742738285339,1.301,2020.0,2019.9,2.25452]
[1742738293954,1.301,2020.0,2019.9,2.89262]
[1742738299158,1.301,2020.0,2019.9,2.25452]
[1742738303154,0.663,2020.1,2020.0,0.99027]
[1742738303463,1.9312,2020.1,2020.0,2.25527]
[1742738304158,0.6594,2020.3,2020.2,0.99017]
[1742738304366,1.9607,2020.3,2020.2,0.99017]
[1742738304761,1.9607,2020.3,2020.2,2.27407]
[1742738308165,0.0074355,2020.4,2020.3,0.99013]
[1742738308361,0.0074355,2020.4,2020.3,5.59073]
[1742738311970,2.0223355,2020.4,2020.3,5.59073]
[1742738312766,2.0223355,2020.4,2020.3,4.6006]
[1742738312967,3.0124155,2020.4,2020.3,4.6006]
[1742738313572,2.0223355,2020.4,2020.3,5.59073]
[1742738314274,0.0074355,2020.4,2020.3,5.59073]
[1742738317372,4.19744,2021.3,2020.5,2.47508]
[1742738317670,4.19744,2021.3,2020.8,3.2078]
[1742738317671,1.3608,2021.2,2020.8,3.2078]
[1742738317876,1.3608,2021.2,2021.0,0.98978]
[1742738318073,1.3608,2021.2,2021.1,2.28773]
[1742738318963,4.54015696,2021.4,2021.1,5.49553]
[1742738319167,0.00495696,2021.4,2021.2,1.3927]
[1742738319366,0.00495696,2021.4,2021.3,0.6928]
[1742738319762,0.00495696,2021.4,2021.1,3.2078]
[1742738319763,0.00495696,2021.4,2021.1,4.19752]
[1742738319972,0.99454696,2021.4,2021.1,4.89032]
[1742738320168,0.6794,2021.3,2021.2,1.3927]
[1742738320567,5.1917,2021.3,2020.9,0.0074355]
[1742738320771,0.98972,2021.2,2020.9,0.0074355]
[1742738320970,4.19674,2021.1,2020.9,1.4001355]
[1742738321177,1.3053,2021.0,2020.9,1.4001355]
[1742738324078,4.5131,2021.0,2020.9,1.4001355]
[1742738324381,5.50288,2021.0,2020.9,1.4001355]
[1742738326876,5.50288,2021.0,2020.9,0.0074355]
[1742738328273,5.50288,2021.0,2020.5,3.2078]
[1742738328274,0.98998,2020.6,2020.5,3.2078]
[1742738328477,0.99004,2020.5,2020.2,3.2078]
[1742738328672,2.35474,2020.5,2020.3,0.6817]
[1742738328878,0.99013,2020.3,2019.9,3.2078]
[1742738329078,0.99023,2020.1,2019.9,3.8895]
[1742738329376,0.99024,2020.1,2019.9,3.8895]
[1742738329575,0.99024,2020.1,2020.0,1.3029]
[1742738329881,0.99032,2019.9,2019.8,0.0074355]
[1742738330178,7.41112,2019.9,2019.8,0.0074355]
[1742738332083,3.2078,2019.9,2019.8,0.9978055]
[1742738332887,3.222,2020.0,2019.8,0.9978055]
[1742738333075,3.222,2020.0,2019.9,1.363]
[1742738333275,4.21227,2020.0,2019.9,1.363]
[1742738334686,0.99032,2019.9,2019.8,0.0074355]
[1742738340984,0.99059,2019.4,2019.2,0.99064]
[1742738341179,0.99059,2019.4,2019.1,42.1146]
[1742738341180,0.99059,2019.4,2019.3,1.2675]
[1742738341690,4.21755,2019.5,2019.3,1.2675]
[1742738341888,4.21755,2019.5,2019.3,2.2581]
[1742738342191,0.99057,2019.4,2019.3,1.2675]
[1742738342392,0.99057,2019.4,2019.2,0.9980955]
[1742738342991,1.62497,2019.4,2019.2,0.9980955]
[1742738345690,0.99062,2019.3,2019.2,0.9980955]
[1742738346394,1.62499,2019.4,2019.3,0.99062]
[1742738346591,1.62499,2019.4,2019.2,0.0074355]
[1742738346784,1.62499,2019.4,2019.2,0.9980655]
[1742738346986,0.99062,2019.3,2019.2,0.9980655]
[1742738348797,0.99062,2019.3,2019.2,0.0074355]
[1742738348999,0.99062,2019.3,2019.2,0.9980955]
[1742738349596,2.93477,2019.4,2019.3,0.99062]
[1742738349899,3.8944,2019.6,2019.5,0.99052]
[1742738349900,5.4797,2019.6,2019.5,0.99052]
[1742738350093,8.7007,2019.6,2019.5,0.99052]
[1742738350289,3.2078,2019.6,2019.5,0.99052]
[1742738351498,3.2078,2019.6,2019.3,5.68434]
[1742738351499,0.99052,2019.5,2019.4,0.99053]
[1742738351690,5.4797,2019.6,2019.4,0.99053]
[1742738352196,5.4797,2019.6,2019.5,0.6628]
[1742738352691,0.99057,2019.4,2019.3,4.19838]
[1742738352885,0.99057,2019.4,2019.3,4.85838]
[1742738356499,0.99057,2019.4,2019.3,6.13858]
[1742738357096,0.99057,2019.4,2019.3,2.93078]
[1742738357597,0.99057,2019.4,2019.2,0.0074355]
[1742738357598,0.99062,2019.3,2019.2,0.0074355]
[1742738357792,3.72392,2019.3,2019.2,1.2876355]
[1742738359508,3.72392,2019.3,2019.2,2.2782955]
[1742738359694,2.7333,2019.3,2019.2,2.2782955]
[1742738360501,3.72392,2019.3,2019.2,1.2876355]
[1742738360697,6.93172,2019.3,2019.2,1.2876355]
[1742738364510,3.72392,2019.3,2019.2,1.2876355]
[1742738365097,6.93172,2019.3,2019.2,1.2876355]
[1742738367295,6.93172,2019.3,2019.2,0.0074355]
[1742738377506,3.72392,2019.3,2019.2,0.0074355]
[1742738377818,6.93172,2019.3,2019.2,0.0074355]
[1742738382117,3.203,2019.3,2019.2,0.9980655]
[1742738382321,4.19362,2019.3,2019.2,2.3208655]
[1742738382518,3.203,2019.3,2019.2,2.3208655]
[1742738382721,4.19362,2019.3,2019.2,1.3302355]
[1742738382920,4.19362,2019.3,2019.2,2.3208955]
[1742738383217,4.19362,2019.3,2019.2,3.6878955]
[1742738383417,3.203,2019.3,2019.2,3.6878955]
[1742738390015,0.9906,2019.4,2019.2,2.6972355]
[1742738390321,0.9906,2019.4,2019.3,2.30182]
[1742738390506,3.195,2019.4,2019.3,2.30182]
[1742738390822,4.19828,2019.6,2019.3,2.30182]
[1742738390823,3.2078,2019.6,2019.5,0.99052]
[1742738391118,6.4048,2019.6,2019.5,0.99052]
[1742738391320,3.2078,2019.6,2019.5,0.99052]
[1742738391521,6.4058,2019.6,2019.5,2.32402]
[1742738394111,6.4048,2019.6,2019.5,2.32402]
[1742738394315,2.0247,2019.8,2019.7,0.99042]
[1742738394515,2.0247,2019.8,2019.5,1.3335]
[1742738394516,45.769,2019.9,2019.8,0.99037]
[1742738394719,50.3357,2019.9,2019.8,0.99037]
[1742738396013,51.32602,2019.9,2019.8,0.99037]
[1742738396218,0.99037,2019.8,2019.7,0.99038]
[1742738396413,2.34357,2019.8,2019.7,0.99038]
[1742738396625,1.3532,2019.8,2019.7,0.99038]
[1742738397016,2.34357,2019.8,2019.7,0.99038]
[1742738397222,1.3532,2019.8,2019.7,0.99038]
[1742738398824,49.95536,2019.9,2019.7,0.99038]
[1742738399129,49.95536,2019.9,2019.8,1.2753]
[1742738400428,51.34086,2019.9,2019.8,1.2753]
[1742738400821,48.14486,2019.9,2019.8,2.26567]
[1742738401130,51.33682,2019.9,2019.8,2.26567]
[1742738401421,51.33682,2019.9,2019.8,1.2753]
[1742738401620,3.2078,2020.0,2019.9,0.99032]
[1742738401926,2.47581,2019.9,2019.5,3.2078]
[1742738402119,0.99057,2019.4,2019.1,0.6705]
[1742738402424,7.39837,2019.4,2019.2,0.9980855]
[1742738402631,3.69152,2019.3,2019.2,1.2795355]
[1742738403722,3.69152,2019.3,2019.2,2.2701955]
[1742738404031,2.7009,2019.3,2019.2,2.2701955]
[1742738404225,3.2078,2019.7,2019.2,4.4873355]
[1742738404546,4.5811,2019.6,2019.5,0.99052]
[1742738405027,0.99052,2019.5,2019.4,1.3455]
[1742738405224,2.37162,2019.5,2019.4,1.3455]
[1742738405626,2.37162,2019.5,2019.4,2.33607]
[1742738405821,1.3811,2019.5,2019.4,2.33607]
[1742738406127,3.2,2019.6,2019.4,2.33603]
[1742738406328,5.57157,2019.6,2019.5,1.3455]
[1742738407027,4.5811,2019.6,2019.5,1.3455]
[1742738407228,4.5811,2019.6,2019.5,2.33602]
[1742738407622,4.5811,2019.6,2019.5,1.3455]
[1742738408131,4.5811,2019.6,2019.5,2.33602]
[1742738408332,4.5811,2019.6,2019.5,1.3455]
[1742738408530,4.5861,2019.6,2019.5,2.33602]
[1742738409433,3.205,2019.6,2019.5,2.33602]
[1742738410630,5.18,2019.7,2019.6,0.99047]
[1742738410932,45.779,2019.8,2019.7,0.99042]
[1742738411131,48.982,2019.8,2019.7,0.99042]
[1742738411335,50.2812,2019.8,2019.7,1.65352]
[1742738412040,51.27157,2019.8,2019.7,1.65352]
[1742738412238,51.27157,2019.8,2019.7,0.6631]
[1742738412437,51.27157,2019.8,2019.6,2.29414]
[1742738412735,51.27157,2019.8,2019.7,1.3037]
[1742738412736,49.97237,2019.8,2019.7,1.3037]
[1742738412933,2.35215,2019.9,2019.7,2.29411]
[1742738413136,2.35215,2019.9,2019.7,1.3037]
[1742738413137,0.99037,2019.8,2019.7,1.3037]
[1742738413337,4.5628,2019.9,2019.7,2.29412]
[1742738413727,5.55312,2019.9,2019.8,1.3423]
[1742738415034,4.5628,2019.9,2019.8,2.33267]
[1742738415438,0.6698,2019.9,2019.8,2.33267]
[1742738415631,3.2078,2020.0,2019.9,0.99032]
[1742738415830,3.2078,2020.0,2019.9,2.98222]
[1742738416340,0.6678355,2020.2,2020.1,0.99022]
[1742738417039,1.6580055,2020.2,2020.1,1.67812]
[1742738417640,1.6580055,2020.2,2020.1,0.6879]
[1742738418037,0.6678355,2020.2,2020.1,1.67812]
[1742738418342,1.6580055,2020.2,2020.0,2.37854]
[1742738418838,1.6580055,2020.2,2020.1,1.3883]
[1742738420136,1.6580055,2020.2,2020.1,2.37852]
[1742738420941,0.0074355,2020.2,2020.1,2.37852]
[1742738423240,0.99008,2020.4,2020.2,0.99015]
[1742738423436,7.794,2020.7,2020.3,1.3739]
[1742738423638,0.99008,2020.4,2020.3,1.3739]
[1742738423837,7.794,2020.7,2020.3,1.3739]
[1742738424335,0.99008,2020.4,2020.3,1.3813355]
[1742738424539,4.19788,2020.4,2020.3,1.3813355]
[1742738425035,4.87438,2020.4,2020.3,1.3813355]
[1742738425436,4.87438,2020.4,2020.3,0.0074355]
[1742738426437,6.22358,2020.4,2020.3,0.0074355]
[1742738427648,0.99023,2020.1,2019.9,3.2078]
[1742738427944,0.99023,2020.1,2020.0,1.3979]
[1742738428246,0.99029,2020.0,2019.6,0.6719]
[1742738428441,0.99038,2019.8,2019.6,1.3646]
[1742738428644,0.99038,2019.8,2019.7,1.3315]
[1742738428840,4.21438,2019.8,2019.7,1.3315]
[1742738429552,0.99047,2019.6,2019.5,0.0074355]
[1742738429734,4.21447,2019.6,2019.5,1.3389355]
[1742738436447,4.21447,2019.6,2019.5,0.0074355]
[1742738438945,3.224,2019.6,2019.5,0.0074355]
[1742738439141,4.21447,2019.6,2019.5,0.0074355]
[1742738439345,49.97621,2019.8,2019.5,0.0074355]
[1742738439549,3.216,2019.7,2019.6,0.99046]
[1742738439746,3.216,2019.7,2019.6,3.03396]
[1742738440847,3.217,2019.9,2019.8,0.99036]
[1742738441047,3.2078,2020.1,2019.7,1.3418]
[1742738441249,3.217,2020.0,2019.7,1.3418]
[1742738441448,4.20831,2020.0,2019.7,2.33218]
[1742738442060,3.218,2020.0,2019.8,2.33217]
[1742738442253,3.218,2020.0,2019.9,1.3418]
[1742738442552,3.2078,2020.1,2019.9,1.3418]
[1742738442849,3.2078,2020.1,2020.0,0.99027]
[1742738443148,3.218,2020.4,2020.3,0.99013]
[1742738443353,0.99003,2020.5,2020.3,0.99013]
[1742738443547,7.4258,2020.6,2020.4,1.3418]
[1742738443749,0.99003,2020.5,2020.4,1.3418]
[1742738443952,7.42581,2020.6,2020.4,1.3418]
[1742738444553,7.42581,2020.6,2020.4,2.33187]
[1742738444756,6.4358,2020.6,2020.4,1.3418]
[1742738445064,6.4358,2020.6,2020.5,0.99003]
[1742738445561,3.228,2020.6,2020.5,4.19783]
[1742738446543,0.9973955,2020.7,2020.5,4.19783]
[1742738446748,0.9973955,2020.7,2020.6,1.3505]
[1742738450659,4.2051955,2020.7,2020.6,1.3505]
[1742738450851,6.1537955,2020.7,2020.6,1.3505]
[1742738451957,0.99007,2020.5,2020.2,3.2078]
[1742738452255,0.99007,2020.5,2020.3,2.37181]
[1742738452455,0.99007,2020.5,2020.4,1.3817]
[1742738452867,2.26547,2020.5,2020.4,1.3817]
[1742738461959,2.26547,2020.5,2020.1,0.6735]
[1742738462162,0.99017,2020.2,2020.1,0.6735]
[1742738462363,0.99022,2020.1,2020.0,0.6592]
[1742738462672,0.99027,2020.0,2019.8,2.67785]
[1742738462966,4.19927,2020.0,2019.8,3.33655]
[1742738463159,5.46477,2020.0,2019.9,1.4023]
[1742738468173,0.99042,2019.7,2019.6,5.48455]
[1742738468465,3.204,2019.8,2019.7,0.99041]
[1742738469064,4.19441,2019.8,2019.7,0.99041]
[1742738469466,4.19441,2019.8,2019.7,2.33901]
[1742738469870,3.204,2019.8,2019.7,2.33901]
[1742738470065,4.19437,2019.8,2019.7,2.33901]
[1742738471671,4.19437,2019.8,2019.7,1.3486]
[1742738472078,4.19437,2019.8,2019.7,2.33902]
[1742738472267,0.6786,2020.1,2020.0,0.99027]
[1742738472571,0.99022,2020.2,2020.1,0.99021]
[1742738472872,6.4318,2021.0,2020.6,0.98998]
[1742738473073,0.98992,2020.8,2020.5,3.2078]
[1742738473269,3.2078,2021.0,2020.6,3.05968]
[1742738473467,3.2078,2021.0,2020.6,2.0697]
[1742738473666,0.9973655,2020.7,2020.6,2.0697]
[1742738475169,0.0074355,2020.7,2020.6,3.05968]
[1742738475366,0.9973655,2020.7,2020.6,2.0697]
[1742738475967,6.4542355,2020.7,2020.3,0.6713]
[1742738476167,6.4542355,2020.7,2020.4,1.3855]
[1742738476470,6.4542355,2020.7,2020.2,0.8579]
[1742738476471,0.99013,2020.3,2020.2,0.8579]
[1742738476660,4.22913,2020.3,2020.2,0.8579]
[1742738476860,3.2152355,2020.7,2020.2,0.8579]
[1742738477061,3.238,2020.6,2020.3,4.5933]
[1742738477272,3.237,2020.6,2020.4,1.3047]
[1742738477473,3.237,2020.6,2020.5,0.99003]
[1742738477666,3.237,2020.6,2020.5,1.66893]
[1742738477867,0.0074355,2020.7,2020.6,0.98998]
[1742738478068,3.2454355,2020.7,2020.6,2.29468]
[1742738479179,0.0074355,2020.7,2020.6,2.29468]
[1742738479977,0.0074355,2020.7,2020.6,5.50248]
[1742738480380,0.0074355,2020.7,2020.6,1.3047]
[1742738481377,0.0074355,2020.7,2020.6,2.29468]
[1742738482179,0.0074355,2020.7,2020.6,1.3047]
[1742738482380,0.0074355,2020.7,2020.6,2.29468]
[1742738483974,0.0074355,2020.7,2020.6,5.50248]
[1742738485576,0.9973655,2020.7,2020.6,1.3047]
[1742738485783,0.0074355,2020.7,2020.6,2.29468]
[1742738486579,1.3251355,2020.7,2020.6,2.29468]
[1742738486879,1.3251355,2020.7,2020.6,1.3047]
[1742738487086,1.3251355,2020.7,2020.6,2.29468]
[1742738487473,2.3150655,2020.7,2020.6,1.3047]
[1742738487667,2.3150655,2020.7,2020.4,3.09656]
[1742738487668,7.7619355,2020.7,2020.4,3.09656]
[1742738487874,3.64478,2020.6,2020.5,1.3006]
[1742738488686,0.99003,2020.5,2020.4,1.4585]
[1742738488886,5.53873,2020.5,2020.4,1.4585]
[1742738490182,0.99013,2020.3,2020.2,1.3006]
[1742738490488,0.99017,2020.2,2020.1,0.8581]
[1742738490789,5.3025,2020.2,2020.1,1.84832]
[1742738491086,5.3025,2020.2,2020.1,3.25132]
[1742738491286,2.0685,2020.2,2020.1,3.25132]
[1742738491473,3.234,2020.2,2020.1,3.25132]
[1742738492682,3.234,2020.2,2020.1,2.39322]
[1742738493381,3.232,2020.3,2020.2,0.99017]
[1742738493588,6.4398,2020.4,2020.3,0.99013]
[1742738493789,46.4431,2020.6,2020.5,0.99003]
[1742738493989,3.232,2020.6,2020.5,0.99003]
[1742738494594,3.232,2020.6,2020.5,41.79003]
[1742738494787,3.232,2020.6,2020.5,0.99003]
[1742738495290,3.2152355,2020.7,2020.6,0.98998]
[1742738496490,3.2152355,2020.7,2020.6,1.67138]
[1742738499694,3.2152355,2020.7,2020.6,2.98438]
[1742738499891,48.987,2021.1,2020.7,2.47479]
[1742738500081,49.97676,2021.1,2021.0,0.98978]
[1742738500486,49.97676,2021.1,2021.0,2.30278]
[1742738500890,48.987,2021.1,2021.0,2.30278]
[1742738501092,48.986,2021.1,2021.0,2.30278]
[1742738501282,50.3215,2021.1,2021.0,2.30278]
[1742738502106,51.31123,2021.1,2021.0,1.313]
[1742738502301,50.3215,2021.1,2021.0,2.30278]
[1742738502990,51.31123,2021.1,2021.0,1.313]
[1742738504796,0.98978,2021.0,2020.9,1.9793]
[1742738504995,2.35368,2021.0,2020.9,1.9793]
[1742738505498,45.76,2021.1,2020.9,1.9793]
[1742738505696,50.3509,2021.1,2021.0,0.98978]
[1742738506008,50.3509,2021.1,2021.0,2.26368]
[1742738506193,1.3639,2021.1,2021.0,1.2739]
[1742738506388,5.5562755,2021.3,2021.0,2.26365]
[1742738506593,1.3639,2021.2,2021.1,0.98973]
[1742738506793,1.3639,2021.2,2021.1,2.26363]
[1742738507295,1.3639,2021.2,2021.1,1.2739]
[1742738507497,0.98975,2021.1,2020.9,3.2078]
[1742738507698,1.3691,2021.0,2020.9,4.5452]
[1742738507891,2.0387,2021.0,2020.9,4.5452]
[1742738508288,3.02848,2021.0,2020.9,4.5452]
[1742738508501,2.0387,2021.0,2020.9,4.5452]
[1742738508893,2.0387,2021.0,2020.9,7.51433]
[1742738509094,0.6445355,2021.3,2021.0,0.98978]
[1742738509301,0.6445355,2021.3,2021.1,1.3374]
[1742738509302,3.227,2021.2,2021.1,1.3374]
[1742738509503,4.5961,2021.2,2021.1,2.32713]
[1742738509705,4.5951,2021.2,2021.1,1.3374]
[1742738509894,4.5951,2021.2,2021.1,2.32713]
[1742738511603,4.5951,2021.2,2021.0,0.98978]
[1742738511803,2.0222,2021.1,2021.0,2.36998]
[1742738512909,2.0222,2021.1,2021.0,2.49978]
[1742738513208,2.0222,2021.1,2021.0,3.35758]
[1742738513412,3.226,2021.2,2021.1,0.98973]
[1742738513713,3.226,2021.2,2021.1,2.38523]
[1742738513904,4.5437,2021.2,2021.1,3.06063]
[1742738514908,4.5437,2021.2,2021.1,4.51913]
[1742738516406,1.3177,2021.2,2021.1,4.51913]
[1742738517805,3.8705355,2021.3,2021.2,0.98968]
[1742738518011,3.8705355,2021.3,2021.2,2.39298]
[1742738518310,0.6445355,2021.3,2021.2,2.39298]
[1742738519018,1.9134355,2021.3,2021.2,2.39298]
[1742738520418,0.6445355,2021.3,2021.2,2.39298]
[1742738520619,2.0152355,2021.3,2021.2,2.39298]
[1742738522720,2.0152355,2021.3,2021.2,3.11908]
[1742738523120,2.0152355,2021.3,2021.2,6.32688]
[1742738524526,0.0074355,2021.3,2021.2,6.32688]
[1742738525628,0.0074355,2021.3,2021.2,6.58138]
[1742738525933,1.3149355,2021.3,2021.2,6.58138]
[1742738527335,1.3149355,2021.3,2021.2,6.71118]
[1742738528424,0.0074355,2021.3,2021.2,6.71118]
[1742738533136,0.9970755,2021.3,2021.2,5.7215]
[1742738533328,0.0074355,2021.3,2021.2,6.71118]
[1742738533529,2.0020355,2021.3,2021.2,6.71118]
[1742738533827,2.9916755,2021.3,2021.2,5.7215]
[1742738534030,2.0020355,2021.3,2021.2,6.71118]
[1742738534733,2.9916755,2021.3,2021.2,7.7005]
[1742738535039,2.9916755,2021.3,2021.2,3.0894]
[1742738535237,0.98968,2021.2,2021.1,0.2721235]
[1742738535441,0.98973,2021.1,2021.0,0.8578]
[1742738535735,0.98983,2020.9,2020.8,0.0074355]
[1742738535938,4.20283,2020.9,2020.8,0.0074355]
[1742738536139,7.41063,2020.9,2020.8,0.0074355]
[1742738536340,9.91063,2020.9,2020.8,0.0074355]
[1742738536741,0.99007,2020.5,2020.3,5.50039]
[1742738536933,3.214,2020.4,2020.1,0.9902]
[1742738537240,4.20414,2020.3,2020.1,2.2927]
[1742738537440,1.3005,2020.2,2020.1,2.2927]
[1742738538039,1.3005,2020.2,2019.9,0.0074355]
[1742738538336,0.99027,2020.0,2019.9,0.0074355]
[1742738538730,2.26677,2020.0,2019.9,0.0074355]
[1742738539631,5.48577,2020.0,2019.9,0.0074355]
[1742738539934,5.48477,2020.0,2019.9,0.0074355]
[1742738540242,6.17537,2020.0,2019.9,0.0074355]
[1742738542137,5.1851,2020.0,2019.9,0.0074355]
[1742738542332,6.17537,2020.0,2019.9,0.0074355]
[1742738543343,9.38317,2020.0,2019.9,1.93228663]
[1742738543846,11.96119534,2020.0,2019.9,0.98638663]
[1742738544144,0.99052,2019.5,2019.4,3.2078]
[1742738544340,4.21952,2019.5,2019.4,3.2078]
[1742738544735,0.99057,2019.4,2019.3,1.3021]
[1742738544935,1.3607,2019.4,2019.3,1.3021]
[1742738545335,1.3607,2019.4,2019.3,2.29272]
[1742738545839,3.229,2019.5,2019.3,2.95682]
[1742738546040,3.2078,2019.9,2019.4,4.5099]
[1742738546245,4.5897,2019.8,2019.5,0.99047]
[1742738546542,4.5897,2019.8,2019.6,2.29257]
[1742738546744,4.5897,2019.8,2019.7,1.3021]
[1742738547330,4.5897,2019.8,2019.7,1.9662]
[1742738547730,4.5897,2019.8,2019.7,2.95662]
[1742738547931,3.229,2019.8,2019.7,2.95662]
[1742738548746,3.229,2019.8,2019.7,1.9662]
[1742738549646,3.229,2019.8,2019.7,2.95662]
[1742738550039,3.229,2019.8,2019.7,1.9662]
[1742738551243,4.21937,2019.8,2019.5,0.99048]
[1742738551442,1.3335,2019.7,2019.6,1.3348]
[1742738551745,2.32392,2019.7,2019.6,1.3348]
[1742738552948,2.32392,2019.7,2019.4,4.19837]
[1742738553148,3.242,2019.6,2019.5,1.3348]
[1742738553346,4.6424,2019.6,2019.5,1.3348]
[1742738553851,5.63287,2019.6,2019.5,1.3348]
[1742738554151,5.63287,2019.6,2019.4,3.2078]
[1742738554452,0.99052,2019.5,2019.4,4.5096]
[1742738554636,2.39092,2019.5,2019.4,4.5096]
[1742738554949,2.39092,2019.5,2019.4,1.3018]
[1742738555851,0.99057,2019.4,2019.3,0.6801]
[1742738556051,5.62897,2019.4,2019.3,1.9819]
[1742738556450,0.99062,2019.3,2019.1,3.2152355]
[1742738556653,4.5236,2019.2,2019.1,3.2152355]
[1742738557153,4.5236,2019.2,2019.1,4.2059455]
[1742738558549,3.238,2019.2,2019.1,4.2059455]
[1742738560441,4.22866,2019.2,2019.1,3.2152355]
[1742738560953,4.22866,2019.2,2019.1,0.0074355]
[1742738561648,5.55586,2019.2,2019.1,0.0074355]
[1742738566556,2.31786,2019.2,2019.1,0.0074355]
[1742738566761,0.99066,2019.2,2019.1,0.0074355]
[1742738567061,3.23,2019.2,2019.1,0.9981455]
[1742738567647,4.22066,2019.2,2019.1,0.0074355]
[1742738567848,3.23,2019.2,2019.1,0.0074355]
[1742738568047,5.55516,2019.2,2019.1,0.0074355]
[1742738569256,5.55416,2019.2,2019.1,0.0074355]
[1742738569457,4.21966,2019.2,2019.1,0.0074355]
[1742738569658,3.2078,2019.3,2019.1,0.0074355]
[1742738569864,4.21966,2019.2,2019.1,0.0074355]
[1742738571159,5.61156,2019.2,2019.1,0.0074355]
[1742738576059,8.11156,2019.2,2019.1,0.0074355]
[1742738576459,0.99101,2018.5,2018.3,0.99108]
[1742738576762,4.21701,2018.5,2018.4,1.2983]
[1742738579870,0.99106,2018.4,2018.3,1.3262]
[1742738580068,2.33976,2018.4,2018.3,1.3262]
[1742738580269,5.54756,2018.4,2018.3,1.3262]
[1742738584473,2.33976,2018.4,2018.3,1.3262]
[1742738585570,0.99111,2018.3,2018.2,0.0074355]
[1742738585867,6.24001,2018.3,2018.2,1.2802355]
[1742738586269,6.24001,2018.3,2018.2,0.0074355]
[1742738586972,8.74001,2018.3,2018.2,0.0074355]
[1742738587162,8.74001,2018.3,2018.2,5.5e-06]
[1742738587362,8.81811352,2018.3,2018.2,5.5e-06]
[1742738587775,2.47822,2018.0,2017.7,0.99095]
[1742738587976,0.99135,2017.8,2017.7,0.99095]
[1742738588476,2.29785,2017.8,2017.7,0.99095]
[1742738590676,0.9914,2017.7,2017.6,1.2745]
[1742738590975,8.7348,2017.7,2017.6,1.2745]
[1742738594178,5.527,2017.7,2017.6,1.2745]
[1742738594479,8.7348,2017.7,2017.6,1.2745]
[1742738595376,0.99145,2017.6,2017.5,0.0074355]
[1742738595570,2.37355,2017.6,2017.5,0.0074355]
[1742738595771,2.37355,2017.6,2017.5,1.3728355]
[1742738596271,2.37355,2017.6,2017.5,0.0074355]
[1742738597171,4.87355,2017.6,2017.5,5.5e-06]
[1742738597375,0.9916,2017.3,2017.2,1.3654]
[1742738597575,7.4224,2017.3,2017.2,1.3654]
[1742738597775,53.2454,2017.3,2017.2,1.3654]
[1742738598577,0.9917,2017.1,2017.0,0.6415]
[1742738598779,4.2147,2017.1,2017.0,0.6415]
[1742738599179,4.2147,2017.1,2016.9,0.6839]
[1742738599180,0.99175,2017.0,2016.9,0.6839]
[1742738599379,4.19955,2017.0,2016.9,0.6839]
[1742738600074,5.59615,2017.0,2016.9,0.6839]
[1742738601281,0.99184,2016.8,2016.7,1.9763]
[1742738601482,4.22384,2016.8,2016.7,1.9763]
[1742738603187,3.232,2016.8,2016.7,1.9763]
[1742738604488,3.2078,2017.0,2016.7,1.9763]
[1742738604687,3.23,2016.9,2016.8,2.37224]
[1742738604980,1.1242,2016.9,2016.8,4.5882]
[1742738605186,4.2227,2017.1,2016.8,5.58002]
[1742738605387,3.231,2017.1,2016.9,2.37219]
[1742738605585,3.231,2017.1,2017.0,1.3804]
[1742738605888,3.233,2017.4,2017.0,1.3804]
[1742738606075,3.233,2017.4,2017.1,3.2078]
[1742738606281,3.233,2017.4,2017.2,2.37203]
[1742738606587,3.233,2017.4,2017.3,1.3804]
[1742738607188,3.233,2017.4,2017.3,2.372]
[1742738607378,0.0074355,2017.5,2017.3,2.37198]
[1742738607379,3.2404355,2017.5,2017.3,2.37198]
[1742738607578,3.2404355,2017.5,2017.4,1.3804]
[1742738607780,4.2319355,2017.5,2017.4,1.3804]
[1742738608480,5.2768355,2017.5,2016.9,0.6489]
[1742738608682,0.9917,2017.1,2017.0,1.288]
[1742738608883,4.2327,2017.1,2017.0,1.288]
[1742738610195,4.2327,2017.1,2016.6,0.6712]